Cogmind - Beta 15 @@@ ROGUE MODE // 2025.07.28 @ 10:08:05 Player: Zoe Result: Destroyed by G-47 Trooper with Particle Gun Performance ------------- Evolutions (1) 500 Regions Visited (2) 400 Robots Destroyed (12) 60 Value Destroyed (146) 146 Prototype IDs (0) 0 Alien Tech Used (0) 0 Bonus (0) 0 TOTAL SCORE: 1106 Bonus ------- None Cogmind --------- Core Integrity 0/400 Matter 291/300 Energy 100/100 System Corruption 0% Temperature Cool (9) Movement Flying (1640) Ox20 Location -9/Materials Parts ------- > --- POWER (1) -------- (None) > --- PROPULSION (3) --- Flight Unit > --- UTILITY (3) ------ Huge Storage Unit > --- WEAPON (2) ------- Small Laser > --- INVENTORY (25) --- Ion Engine Light Ion Engine Aluminum Leg Aluminum Leg Compact Wheel Compact Wheel Large Matter Pod (28) Light Assault Rifle Peak State ------------ > --- POWER ------------ Light Ion Engine > --- PROPULSION ------- Aluminum Leg Aluminum Leg > --- UTILITY ---------- Huge Storage Unit Improved Terrain Scanner > --- WEAPON ----------- Assault Rifle Light Assault Rifle > --- INVENTORY -------- Ion Engine Light Ion Engine Light Treads Light Treads Compact Wheel Compact Wheel Large Matter Pod Small Laser Light Assault Rifle Hammer [Rating: 10] Favorites ----------- Power Ion Engine Engine Ion Engine Propulsion Aluminum Leg Treads Light Treads Leg Aluminum Leg Flight Unit Flight Unit Utility Huge Storage Unit Device Improved Terrain Scanner Storage Huge Storage Unit Weapon Light Assault Rifle Energy Gun Small Laser Ballistic Gun Light Assault Rifle Impact Weapon Hammer Build | -11 -10 -9 ------- Run | Yrd Mat Mat Slots Evolved 2 | . . 2 Power . | . . . Propulsion 1 | . . 1 Utility 1 | . . 1 Weapon . | . . . Parts Attached 16 | 8 2 6 Power 3 | 2 . 1 Engine 3 | 2 . 1 Core . | . . . Reactor . | . . . Propulsion 5 | 2 . 3 Treads 2 | . . 2 Leg 2 | 2 . . Wheel . | . . . Hover . | . . . Flight 1 | . . 1 Utility 3 | 2 1 . Device 1 | 1 . . Storage 2 | 1 1 . Processor . | . . . Hackware . | . . . Protection . | . . . Artifact . | . . . Weapon 5 | 2 1 2 Energy Gun 1 | . . 1 Energy Cannon . | . . . Ballistic Gun 3 | 2 1 . Ballistic Cannon . | . . . Launcher . | . . . Special Weapon . | . . . Impact Weapon 1 | . . 1 Slashing Weapon . | . . . Piercing Weapon . | . . . Special Melee Weapon . | . . . Unidentified Prototypes . | . . . Parts Lost 8 | . . 8 Power 2 | . . 2 Propulsion 2 | . . 2 Utility 1 | . . 1 Weapon 3 | . . 3 Highest Loss Streak 6 | . . 6 To Critical Strikes . | . . . Average Backups 8 | 4 8 9 Power 1 | . 1 1 Propulsion 3 | 2 4 4 Utility . | . . 1 Weapon 2 | . 2 2 Tool/Special . | . . . Unused Backups 3 | . . 3 Power . | . . . Propulsion 2 | . . 2 Utility 1 | . . 1 Weapon . | . . . Tool/Special . | . . . Average Slot Usage (%) 81 | . 100 52 Engine 11 | . 14 6 Treads 3 | . . 10 Leg 17 | . 28 . Device 10 | . 14 4 Storage 12 | . 14 11 Energy Gun 1 | . . 3 Ballistic Gun 21 | . 28 11 Peak Build Rating 10 | 9 10 10 Average Rating 7 | 5 9 6 On Entrance 6 | . 9 10 Naked Turns . | . . . Heaviest Build 89 | 14 89 86 Greatest Support 40 | 20 20 40 Greatest Overweight (x) 28 | 1 4 28 Average Overweight (x) 2 | . 3 9 Largest Inventory Capacity 25 | 8 25 25 Average Capacity 21 | 7 24 25 Most Carried 10 | 7 10 10 Average Carried 8 | 4 8 9 Final Capacity 25 | 8 25 25 Final Carried 10 | 6 10 8 Class Distribution -------------------- 100% | Mutant Dominant Class ---------------- Mutant | -10/Materials Mutant | -9/Materials Resources | -11 -10 -9 ----------- Run | Yrd Mat Mat Matter Collected 497 | 330 94 73 Remotely . | . . . Salvage Created 281 | 109 84 88 Parts 19 | 9 4 6 Haulers Intercepted . | . . . Recyclers Shooed . | . . . Parts Field Recycled . | . . . Retrieved Matter . | . . . Parts Self-Destructed . | . . . Prevented . | . . . Kills | -11 -10 -9 ------- Run | Yrd Mat Mat Combat Hostiles Destroyed 7 | . 3 4 Guns 6 | . 3 3 Classes Destroyed 5 | 3 2 . Worker 1 | 1 . . Tunneler 3 | 3 . . Recycler 1 | 1 . . Swarmer 5 | . 2 3 Grunt 2 | . 1 1 Best Kill Streak 3 | 3 2 2 Combat Bots Only 2 | . 2 2 Max Kills in Single Turn 1 | 1 1 1 Gunslinging . | . . . Exploded . | . . . Melee . | . . . Uniques/NPCs Destroyed . | . . . Combat | -11 -10 -9 -------- Run | Yrd Mat Mat Hostile Shots Fired 217 | . 58 159 Missed 54 | . 20 34 Hits 163 | . 38 125 Projectile 163 | . 38 125 Critical Strikes 2 | . . 2 Damage Taken 1471 | . 328 1143 Core 458 | . 50 408 Absorbed by Shields . | . . . Core Remaining (%) 90 | 100 80 . Volleys Fired 42 | 15 12 15 Largest 2 | 2 2 2 Hottest 60 | 40 40 60 Shots Fired 80 | 30 24 26 Gun 80 | 30 24 26 Cannon . | . . . Launcher . | . . . Special . | . . . Kinetic 76 | 30 24 22 Thermal 4 | . . 4 Explosive . | . . . Electromagnetic . | . . . Robot Hit Streak 9 | 3 9 5 Robot Miss Streak 5 | 4 5 4 Penetration Max . | . . . Secondary Targets . | . . . Shots Hit Robots 40 | 13 13 14 Core Hits 18 | 7 5 6 Critical Kills 1 | . . 1 Critical Parts Destroyed 1 | . . 1 Critical Strikes 2 | . . 2 Destroy 1 | . . 1 Smash 1 | . . 1 Melee Attacks 5 | . . 5 Impact 5 | . . 5 Slashing . | . . . Piercing . | . . . Sneak Attacks . | . . . Combat Hostiles . | . . . Follow-up Attacks . | . . . Damage Inflicted 467 | 164 134 169 Guns 407 | 164 134 109 Cannons . | . . . Explosions . | . . . Melee 60 | . . 60 Ramming . | . . . Kinetic 396 | 164 134 98 Thermal 11 | . . 11 Explosive . | . . . Electromagnetic . | . . . Impact 60 | . . 60 Slashing . | . . . Piercing . | . . . Highest Corruption . | . . . Average Corruption . | . . . Corruption Purged . | . . . Corruption Blocked . | . . . Overload Shots . | . . . Overflow Damage 31 | . . 31 Projectiles . | . . . Explosions . | . . . Melee 31 | . . 31 Knockbacks 1 | . . 1 Impact 1 | . . 1 Kinetic . | . . . Secondary . | . . . Self-Inflicted Damage . | . . . Shots . | . . . Rammed . | . . . Targets Rammed . | . . . Kicked . | . . . Crushed . | . . . Highest Temperature 6 | . 6 5 Average Temperature 5 | . 6 4 Received Heat Transfer 246 | . 36 210 Siege Activations . | . . . Martial Activations . | . . . Shielding Activations . | . . . Robots Disrupted . | . . . Combat Hostiles . | . . . Robots Corrupted 1 | . . 1 Combat Hostiles 1 | . . 1 Parts Fried 1 | . . 1 Impact Corruptions 1 | . . 1 Robots Melted . | . . . Combat Hostiles . | . . . Parts Melted . | . . . Heat Transferred 25 | . . 25 Parts Sabotaged . | . . . Parts Stolen . | . . . Parts Stripped . | . . . Power Chain Reactions . | . . . Alert | -11 -10 -9 ------- Run | Yrd Mat Mat Maximum Alert Level . | . . . Low Security (%) 100 | 100 100 100 Level 1 . | . . . Level 2 . | . . . Level 3 . | . . . Level 4 . | . . . Level 5 . | . . . High Security . | . . . Max Security . | . . . Peak Influence 50 | 5 50 40 Initial 1 | . . 1 Average 7 | 1 8 8 Influence Increases 201 | 25 71 105 Destroy 0b10 Robot/C 140 | . 60 80 Destroy 0b10 Robot/NC 25 | 25 . . Destroy Leader 20 | . 10 10 Destroy Structure 1 | . 1 . Lose Combat Pursuer 15 | . . 15 Influence Decreases 201 | 25 66 110 Entered New Map 4 | . . 4 Time Decay 152 | 25 66 61 Lost Part 45 | . . 45 Squads Dispatched . | . . . Investigation . | . . . Extermination . | . . . Reinforcement . | . . . Assault . | . . . Garrison . | . . . Intercept . | . . . Searches Triggered . | . . . Construction Impeded . | . . . Haulers Reinforced . | . . . Active Scanning Responses . | . . . Cargo Convoy Interrupts . | . . . Stealth | -11 -10 -9 --------- Run | Yrd Mat Mat Distress Signals . | . . . Communications Jammed . | . . . Distress Signals . | . . . Times Spotted 13 | . 6 7 Peak Tracking Total 6 | . 4 6 Tactical Retreats 1 | . . 1 Traps | -11 -10 -9 ------- Run | Yrd Mat Mat Traps Triggered 1 | . 1 . Indirectly . | . . . Trap Hack Attempts . | . . . Triggered . | . . . Disarmed . | . . . Reprogrammed . | . . . Reused . | . . . Traps Extracted . | . . . Installed . | . . . Triggered . | . . . Machines | -11 -10 -9 ---------- Run | Yrd Mat Mat Machines Disabled . | . . . Max in Single Turn . | . . . Machines Repaired . | . . . Machines Dismantled . | . . . Machines Sabotaged . | . . . Overloaded Fab Kills . | . . . Hacking | -11 -10 -9 --------- Run | Yrd Mat Mat Machines Accessed 1 | . . 1 Terminals 1 | . . 1 Fabricators . | . . . Repair Stations . | . . . Recycling Units . | . . . Scanalyzers . | . . . Garrison Access . | . . . Total Hacks 1 | . . 1 Successful 1 | . . 1 Failed . | . . . Catastrophic . | . . . Database Lockouts . | . . . Manual 1 | . . 1 Terminals 1 | . . 1 Fabricators . | . . . Repair Stations . | . . . Recycling Units . | . . . Scanalyzers . | . . . Garrison Access . | . . . Terminal Hacks . | . . . Fabricator Hacks . | . . . Repair Station Hacks . | . . . Recycling Unit Hacks . | . . . Scanalyzer . | . . . Garrison Access Hacks . | . . . Unauthorized Hacks 1 | . . 1 Terminals 1 | . . 1 Assimilate 1 | . . 1 Fabricators . | . . . Repair Stations . | . . . Recycling Units . | . . . Scanalyzers . | . . . Garrison Access . | . . . Data Cores Recovered . | . . . Used . | . . . Hacking Detections . | . . . Full Trace Events . | . . . Feedback Events . | . . . Feedback Blocked . | . . . Robot Schematics Acquired . | . . . Robots Built . | . . . Authchips . | . . . Time . | . . . Total Robot Build Rating . | . . . Part Schematics Acquired . | . . . Parts Built . | . . . Authchips . | . . . Time . | . . . Total Part Build Rating . | . . . Parts Repaired . | . . . Time . | . . . Parts Recycled . | . . . Recycled Matter . | . . . Retrieved Matter . | . . . Retrieved Components . | . . . Parts Scanalyzed . | . . . Part Schematics Acquired . | . . . Parts Damaged . | . . . Bothacking | -11 -10 -9 ------------ Run | Yrd Mat Mat Used RIF Installer . | . . . Robots Hacked . | . . . Non-combat . | . . . Combat . | . . . Robot Hacks Applied . | . . . Relay Couplers Released . | . . . Fabnet Peak Effective % . | . . . Robots Rewired . | . . . Allies Hacked . | . . . Hacks Repelled . | . . . Allies | -11 -10 -9 -------- Run | Yrd Mat Mat Total Allies . | . . . Largest Group . | . . . Highest-Rated Group . | . . . Highest-Rated Ally . | . . . Total Orders . | . . . Ally Attacks . | . . . Total Damage . | . . . Kills . | . . . Allies Corrupted . | . . . Allies Melted . | . . . Intel | -11 -10 -9 ------- Run | Yrd Mat Mat Active Infowar (turns) 688 | 17 529 142 Terrain 688 | 17 529 142 Robot Analysis Total . | . . . Derelict Logs Recovered . | . . . Drone Launches . | . . . Drone Recoveries . | . . . Exploration | -11 -10 -9 ------------- Run | Yrd Mat Mat Turns Passed 1030 | 174 529 327 Spaces Moved 260 | 97 133 30 Core 17 | 11 . 6 Treads 20 | . . 20 Legs 219 | 86 133 . Wheels . | . . . Hover . | . . . Flight 4 | . . 4 Fastest Speed 50 | 50 120 320 Average Speed 314 | 114 366 729 Slowest Speed 1720 | 120 400 1720 Overloaded Moves . | . . . Propulsion Burnouts . | . . . Robots Hopped . | . . . Potential Cave-ins . | . . . Cave-ins Triggered . | . . . Exploration Rate (%) 13 | 6 30 3 Regions Visited 2 Branch Regions . Pre-discovered Areas . | . . . Known Exits Taken . | . . . Unknown Exits Taken 2 | 1 1 . Scrap Searched . | . . . Spaces Dug . | . . . Terrain Destroyed . | . . . Melee . | . . . Projectile . | . . . AOE . | . . . Terrain Rammed . | . . . Walls Destroyed . | . . . Machines Disabled . | . . . Actions | -11 -10 -9 --------- Run | Yrd Mat Mat Total 397 | 132 155 110 Wait 53 | . 2 51 Move 258 | 96 132 30 Hop . | . . . Pick Up 20 | 13 5 2 Fast Attach . | . . . Attach 11 | 7 . 4 Detach . | . . . Swap 7 | 1 3 3 Drop 1 | . 1 . Fire 42 | 15 12 15 Melee 5 | . . 5 Ram . | . . . Kick . | . . . Crush . | . . . Escape Stasis . | . . . Rewire . | . . . Trap . | . . . Miscellaneous . | . . . Route ------- -11/Scrapyard -10/Materials -9/Materials History --------- Turn | Location | Event 10 | -11/Scrapyard | Discovered new exit (range 16) 175 | -11/Scrapyard | Entered Materials 314 | -10/Materials | Build established: Mutant 680 | -10/Materials | Discovered new exit (range 8) 704 | -10/Materials | Entered another Materials area 704 | -9/Materials | Evolved 2 slots: Propulsion x1, Utility x1 880 | -9/Materials | Core integrity fell below 50% 906 | -9/Materials | Core integrity fell below 20% 927 | -9/Materials | Lost 6 parts (1p2n1u2w) 1031 | -9/Materials | Destroyed by G-47 Trooper with Particle Gun Last Messages --------------- R-06 Scavenger collects Sml. Laser. Imp. Terrain Scanner destroyed. Lgt. Treads destroyed. R-06 Scavenger collects Ion Engine. G-34 Mercenary suffers critical hit (Smash). Destroyed Aluminum Leg. G-34 Mercenary system corrupted by crushing effect. G-34 Mercenary knocked back. G-34 Mercenary system terminally corrupted. Aluminum Leg fried. Lgt. Treads destroyed. Hammer destroyed. S-10 Pest destroyed. Acquired Lgt. Ion Engine. Acquired Flight Unit. Acquired 33 matter. Assault Rifle destroyed. Critical hit (Burn: +37). Lgt. Ion Engine destroyed. Map ----- +----------------------------------------------------+ | ????????????????????????????????????????????????? | | ????????????????????????????????????????????????? | | ????????????????????????????????????????????????? | | ????????????????????????????????????????????????? | | ????????????????????????????????????????????????? | | ????????????????????????????????????????????????? | | ?????????????????????? ###??????????????????????? | | ?????????????????????# #??????????????????????? | | ?????????????????????# #??????????????????????? | | ?????????????????????# #??????????????????????? | | ????????? ???????????+ +????? ????????????????? | | ????????? ???????????# #??????????????????????? | | ?????????????????????# #??????????????????????? | | ????????????????#????# #???????#??????????????? | | ??????????#??????????# #????????#?????????????? | | ??????????????????? ?# #???#???????#??????????? | | ?????????????????? ??# #?##?????#?????????????? | | ?????????????????? ?+ #???????#?#????????????? | | ????????? ???????????# ##???#?????????????????? | | ????????? ????#??????# #?????????????#????????? | | ????????# ############ #####?????#????????????? | | ????? % #??????????????????? | | ????? ##?????????????????? | | ????? % [ #??????????????????? | | ??????#####+#############g####?#????????????????? | | ???????????????????#??# @[ #??????????????????? | | ???????? ?????????#??# #???#?##???????????? | | ??????????????????#???# """ "#???????#????#?????? | | ???????????????????#??# """ T#????#?????#???????? | | ?????????? ???????????# """ "#???#??#???????????? | | ????????? ???????#????# #?#?????#??????????? | | ???????????? ?????????########?????#????????????? | | ????????????????#?????????#??????##?????????????? | | ??????????????????????????#?????????????????????? | | ?????????????????????????????????#??????????????? | | | | | | | | | | | | | | | | | | | | | | | | | | | | | | | +----------------------------------------------------+ Best States ------------- Heat Dissipation 28 Energy Generation 10 Energy Capacity 250 Matter Stores 300 Matter Capacity 300 Sight Range 16 Terrain Scan Range 16 Terrain Scan Density 10 Evasion (%) 55 Recoil Reduction 2 Item Schematics ----------------- None Robot Schematics ------------------ None Fabricated ------------ Nothing Repaired ---------- Nothing Alien Tech Used ----------------- None Achievements -------------- True Hacker Challenges ------------ None Game ------ Seed AbsorptionDirtyDetonator Manual? 0 Play Time 00:09:32 Cumulative 11.2 hours Start 2025.07.28 @ 10:01:13 End 2025.07.28 @ 10:08:05 Sessions 1 Manual Loads 0 Difficulty Rogue Special Mode None Game No. 23 Rogue 20 Adventurer 3 Explorer 0 Win Type - Total 0 Types 0/0/0/0/0/0/0/0/0/0 Lore% 9 Gallery% 14 Achievement% 16 Wizard Run 0 Options --------- Layout 1 ASCII 0 Keyboard 0 Movement Mouse Keybinds 0 Fullscreen 1 Font 24/Smallcaps Map View 50x35 Zoom Use 0% Tactical HUD 0 Map Filters NONE Filters NONE Steam 1 RUN: b6cb5060-7941-4fc8-89bf-ef6984c249a7